{"text_format":"3","workbook":"xlsx","n_sheets":1,"sheets":["桌椅"],"read":"whole","date_system":"1900"}

{"sheet":"桌椅","index":0,"n_rows":36,"n_cols":7,"rows_kept":36,"merged":[[0,0,0,6],[7,0,7,6],[21,0,21,6],[25,0,25,6]]}
["一、心理咨询室"]
["序号","采购产品名称","技术要求","采购数量","单位","预算单价","预算金额"]
[1,"外间办公桌子","1.尺寸≥1200*600*760mm\n2.基材：中密度纤维板握钉力强，刨花板吸水膨胀率低，游离甲醛含量达E1标准；\n3.面材：三聚氰胺板、防火板贴面，阻燃、防污、耐冲击、耐刮损、耐磨性强；\n4.封边：PVC硬封边，颜色均匀、美观；\n5.配件：自滑导轨，静音，表面电镀层耐磨损率高；锌合金偏心件，安装牢固，不易松动；门铰，开合次数9万次以上，力度柔和、安静，防腐蚀性、支撑强度高。\n",2,"组",800,{"$f":"F3*D3","v":1600}]
[2,"外间办公椅子","1.网布，弓架结构，塑料扶手；\n2.符合人体工程学原理,承受力不低于150KG；\n3.海绵:采用高密度、回弹性强、不变形、坐感舒适的成型海绵；\n4.扶手：高强度聚乙烯，耐高温，不脆化；\n4.钢管，经电镀、磷化后，不生锈、不易脱落，连接件表面电解氧化。",2,"把",500,{"$f":"F4*D4","v":1000}]
[3,"外间教师柜","1、规格≥900*400*1850mm\n2、哑光灰白，板材：柜体采用冷轧钢板，板厚≥0.7mm。\n3、工艺：板材经酸洗磷化除油除锈，防腐防锈，所有板材的加工件均打磨毛刺，无裂痕及伤痕，表面静电喷涂；连接处焊接牢固，焊痕光滑，平整；\n4、柜体采用静电喷涂工艺，喷涂均匀；",2,"组",800,{"$f":"F5*D5","v":1600}]
[4,"外间书柜","1.尺寸≥800*400*1800mm\n2.基材：选用E1级环保实木颗粒板，外覆免漆饰面，人造板游离甲醛释放限量≤7mg/100g ，家具成品的游离甲醛释放限量≤0.5mg/L。\n3. 选用环保胶水，饰面和基材拼贴严密、平整、无脱胶、鼓泡、裂纹、压痕和划伤，人造板制成的部件双饰面封四边后再组装，封边材料与桌面的饰面单板材料一致。\n4.五金配件符合国家标准。",3,"组",1000,{"$f":"F6*D6","v":3000}]
[5,"外间卷柜","1、规格≥900*400*1850mm\n2、哑光灰白，板材：柜体采用冷轧钢板，板厚≥0.7mm。\n3、工艺：板材经酸洗磷化除油除锈，防腐防锈，所有板材的加工件均打磨毛刺，无裂痕及伤痕，表面静电喷涂；连接处焊接牢固，焊痕光滑，平整；\n4、柜体采用静电喷涂工艺，喷涂均匀；",2,"组",800,{"$f":"F7*D7","v":1600}]
["二、生涯规划教室"]
["序号","采购产品名称","技术要求","采购数量","单位","预算单价","预算金额"]
[1,"沙发","1、L型+单人位沙发。整体尺寸含靠垫高度≥1000mm，宽度≥2500mm\n1、面料：采用厚度≥2mm麻绒，涂层粘着牢度不低于8.7N/10mm、颜色摩擦牢度不低于5级，抗撕裂强度不低于2.3.6N。\n2、海绵：采用高密度回弹海绵，阻燃处理，密度≥49kg/㎡、回弹率≥46%，符合国家阻燃标准。\n3、框架：框架主体采用橡木，板材经过防虫，防腐的无污染化学处理，表面握钉力、静曲强度符合国家标准。\n4、五金配件：坚固耐用。\n6、打底：蛇形高弹力弹簧同编织方法处理。\n7、甲醛释放量mg/L≤0.2。",1,"套",5000,{"$f":"F10*D10","v":5000}]
[2,"茶几","1、顶部采用钢化玻璃；顶架采用纤维板, 丙烯酸漆，挡板采用刨花板,丙烯酸漆, 塑料封边；\n2、整体尺寸：≥1000mm*550mm*480mm",1,"个",1500,1500]
[3,"衣柜","1、尺寸≥1240mm*600mm*2000mm；\n2、采用刨花板，每块隔板承重≥20kg；",1,"个 ",1400,1400]
[4,"档案柜","1、≥16格收纳箱；单个收纳箱尺寸≥330mm*380mm*330mm；\n2、收纳箱采用聚酯纤维材料；",4,"组",550,2200]
[5,"智能减压按摩椅","1、配置太空仓音乐放松椅1台；                \n2、配置压力评估情绪控制系统1套；            \n3、配置身心反馈主机1套；                 \n4、配置生理指标采集仪1套； \n5、配置专业移动工作站1台； \n6、pu材质； \n7、支持背部≥14个推拿揉捏按摩球；\n8、支持臀部振动大腿气囊式按摩；\n9、支持手臂U型气囊式按摩；\n10、腿部气囊按摩、零重力按摩、肩部气囊按摩、头部气囊按摩、脚底滚轮刮痧按摩、蓝牙音乐、热敷；",1,"套",12000,12000]
[6,"边几","1、尺寸≥820mm*300mm*530mm；\n2、地脚采用万向轮可随意移动；\n3、圆角桌面，避免磕碰；",2,"个",350,700]
[7,"宣泄不倒翁","1、材料：全硅胶材质 ：\n2、尺寸：身高≥170CM ，肩宽≥60cm，可击打身高≥120cm，连接器高度≥14cm，水桶直径≥60cm，水桶高度≥40cm，人体重量≥32kg，水桶重量≥5.3kg，水桶可盛水≥100kg；\n3、采用一次成型的橡胶传统工艺，硅橡胶厚度达≥3mm-20mm，坚固耐用，使用寿命是普通皮类沙包的10倍以上。\n4、底座：为橡胶吸盘与水桶结合，不倒翁设计。",1,"套",2500,2500]
[8,"侧墙软包","1、尺寸：≥500mm*500mm；\n2、采用PU皮材质，具有耐磨损、耐屈折、抗撕裂、抗氧化性；",10,"M²",180,1800]
[9,"地面泡沫垫","1、材质采购PE-EVA材料，保证环保无甲醛，可水洗，热压工艺，缓冲强度高；\n尺寸：≥600mm*600mm*20mm；",5,"M²",50,250]
[10,"团体活动桌","1、桌面：采用E1级高密度中纤板台面，厚度为≥25MM，钛白色，黑色PVC胶边封边；\n2.桌架：采用≥1.5mm厚冷轧钢立柱，≥3mm冷轧钢桌面连接，表面高温静电喷涂；\n3.脚轮：万向脚轮带刹车；\n4.单人位尺寸≥750x476*750mm；",9,"张",3500,31500]
[11,"团体活动椅","1、椅面材料及设计：整体采用ABS注塑一体成型，椅背通过晒纹工艺处理。厚度不低于6MM，椅背下部设计圆弧型的透气孔，方便移动。\n2、椅背面设计独立挂钩，挂钩尺寸：≥44*15mm（长宽），挂钩采用PP注塑而成型。\n3、椅架：采用≥Φ22*T1.8mm管，内套≥Φ20*T1.5mm管；后脚采用外倾式设计（可有效防范学生后仰侧翻椅子），后脚跟座面角度为不低于115°表面喷涂处理，配置移动滑轮；\n4、尺寸≥490*570*840mm                            ",54,"把",50,2700]
[12,"放松区书柜及沙发","一、书柜\n1、采用E1级板，厚度≥18mm,基材采用实木多层板，面贴三聚氰胺纸，断面厚度≧1.0mm，PVC直封边；\n2、尺寸≥940mm*300mm*910mm，三层；\n二、沙发\n1、填充采用高弹海绵；\n2、面料采用科技布面料；\n3、内架采用实木内架；\n4、可调节沙发；",1,"套",4500,4500]
["三、阅览室"]
["序号","采购产品名称","技术要求","采购数量","单位","预算单价","预算金额"]
[1,"书架","1、规格≥3600*900*450mm；\n2、每组包含一列四组单面或双组双面书架；\n3、书架具有6层隔板，采用冷轧钢材料，静电喷涂无异味，边板厚度≥1.5mm，中间柱厚度≥1.5mm，顶板和底板厚度≥1.2mm，隔板厚度≥1.0mm；",40,"组",1850,{"$f":"F24*D24","v":74000}]
[2,"桌椅","1、每套桌椅包含1张长条桌和2把椅子；\n2、规格≥1200*400*760mm\n3、基材：中密度纤维板握钉力强，游离甲醛含量达E1标准；\n4、面材：三聚氰胺板、防火板贴面，阻燃、防污、耐冲击、耐刮损、耐磨性强；\n5、封边：PVC硬封边；\n6、配件：连接件安装严密、牢固，无漏钉、透钉；",56,"套",2000,{"$f":"F25*D25","v":112000}]
["四、纱窗"]
["序号","采购产品名称","技术要求","采购数量","单位","预算单价","预算金额"]
[1,"纱窗1","西面，1.不锈金刚网式纱窗，金刚纱网可拆卸，包含配套锁具、五金件等。\n2.主体框架材质为铝合金，尺寸根据各楼宇实际情况确定；外框铝合金规格约为35mm宽×22mm（依现场情况确定，按需调整），壁厚（不含漆模）≥0.6mm；内框铝合金规格约为30mm宽×16mm（依现场情况确定，按需调整），壁厚（不含漆模）≥0.6mm；连接角码材质为铝合金，压条壁厚（不含漆模）≥0.3mm。\n3.金刚网采用不锈钢材质，平纹编织方式，螺纹丝径0.55mm，14目。纱窗框安装在窗开启扇外侧，且与开启扇外框尺寸保持一致。\n4.五金安装牢固、开关灵活。纱窗主框与窗框连接采用镀锌自攻钉固定（纱窗主框应安装与窗户框体上，安装后外露的自攻钉须做打磨处理）。钉的数量、位置、根据实际需要决定，一般间距为20cm左右；带纱窗锁。\n5.框体、纱窗颜色根据实际情况调配，以校方现场确认为准；每套包含配套锁具、五金件等辅件。",124,"个",100,{"$f":"F28*D28","v":12400}]
[2,"纱窗2","东面，1.不锈金刚网式纱窗，金刚纱网可拆卸，包含配套锁具、五金件等。\n2.主体框架材质为铝合金，尺寸根据各楼宇实际情况确定；外框铝合金规格约为35mm宽×22mm（依现场情况确定，按需调整），壁厚（不含漆模）≥0.6mm；内框铝合金规格约为30mm宽×16mm（依现场情况确定，按需调整），壁厚（不含漆模）≥0.6mm；连接角码材质为铝合金，压条壁厚（不含漆模）≥0.3mm。\n3.金刚网采用不锈钢材质，平纹编织方式，螺纹丝径0.55mm，14目。纱窗框安装在窗开启扇外侧，且与开启扇外框尺寸保持一致。\n4.五金安装牢固、开关灵活。纱窗主框与窗框连接采用镀锌自攻钉固定（纱窗主框应安装与窗户框体上，安装后外露的自攻钉须做打磨处理）。钉的数量、位置、根据实际需要决定，一般间距为20cm左右；带纱窗锁。\n5.框体、纱窗颜色根据实际情况调配，以校方现场确认为准；每套包含配套锁具、五金件等辅件。",130,"个",100,13000]
[3,"纱窗3","北侧，1.不锈金刚网式纱窗，金刚纱网可拆卸，包含配套锁具、五金件等。\n2.主体框架材质为铝合金，尺寸根据各楼宇实际情况确定；外框铝合金规格约为35mm宽×22mm（依现场情况确定，按需调整），壁厚（不含漆模）≥0.6mm；内框铝合金规格约为30mm宽×16mm（依现场情况确定，按需调整），壁厚（不含漆模）≥0.6mm；连接角码材质为铝合金，压条壁厚（不含漆模）≥0.3mm。\n3.金刚网采用不锈钢材质，平纹编织方式，螺纹丝径0.55mm，14目。纱窗框安装在窗开启扇外侧，且与开启扇外框尺寸保持一致。\n4.五金安装牢固、开关灵活。纱窗主框与窗框连接采用镀锌自攻钉固定（纱窗主框应安装与窗户框体上，安装后外露的自攻钉须做打磨处理）。钉的数量、位置、根据实际需要决定，一般间距为20cm左右；带纱窗锁。\n5.框体、纱窗颜色根据实际情况调配，以校方现场确认为准；每套包含配套锁具、五金件等辅件。",122,"个",100,12200]
[4,"纱窗4","南侧，1.不锈金刚网式纱窗，金刚纱网可拆卸，包含配套锁具、五金件等。\n2.主体框架材质为铝合金，尺寸根据各楼宇实际情况确定；外框铝合金规格约为35mm宽×22mm（依现场情况确定，按需调整），壁厚（不含漆模）≥0.6mm；内框铝合金规格约为30mm宽×16mm（依现场情况确定，按需调整），壁厚（不含漆模）≥0.6mm；连接角码材质为铝合金，压条壁厚（不含漆模）≥0.3mm。\n3.金刚网采用不锈钢材质，平纹编织方式，螺纹丝径0.55mm，14目。纱窗框安装在窗开启扇外侧，且与开启扇外框尺寸保持一致。\n4.五金安装牢固、开关灵活。纱窗主框与窗框连接采用镀锌自攻钉固定（纱窗主框应安装与窗户框体上，安装后外露的自攻钉须做打磨处理）。钉的数量、位置、根据实际需要决定，一般间距为20cm左右；带纱窗锁。\n5.框体、纱窗颜色根据实际情况调配，以校方现场确认为准；每套包含配套锁具、五金件等辅件。",88,"个",100,8800]
[5,"纱窗5","内侧，1.不锈金刚网式纱窗，金刚纱网可拆卸，包含配套锁具、五金件等。\n2.主体框架材质为铝合金，尺寸根据各楼宇实际情况确定；外框铝合金规格约为35mm宽×22mm（依现场情况确定，按需调整），壁厚（不含漆模）≥0.6mm；内框铝合金规格约为30mm宽×16mm（依现场情况确定，按需调整），壁厚（不含漆模）≥0.6mm；连接角码材质为铝合金，压条壁厚（不含漆模）≥0.3mm。\n3.金刚网采用不锈钢材质，平纹编织方式，螺纹丝径0.55mm，14目。纱窗框安装在窗开启扇外侧，且与开启扇外框尺寸保持一致。\n4.五金安装牢固、开关灵活。纱窗主框与窗框连接采用镀锌自攻钉固定（纱窗主框应安装与窗户框体上，安装后外露的自攻钉须做打磨处理）。钉的数量、位置、根据实际需要决定，一般间距为20cm左右；带纱窗锁。\n5.框体、纱窗颜色根据实际情况调配，以校方现场确认为准；每套包含配套锁具、五金件等辅件。",88,"个",100,8800]
[6,"窗帘","1.布料性能要求:不起皱、不褪色、不变色、抗老化、垂感好,透气,遮光,纺织均匀,无异味。\n2.加工要求:布料加工不易飘线、毛边,加工要求保证帷幔布料的平整性,加工时要求熨烫、方便清洁、维护或更换。\n3.包含窗帘轨道。\n4.尺寸、颜色以校方现场确认为准。",224,"套",300,67200]
[7,"踏步","1、教室踏步外部尺寸，长≥4000mm，宽≥900mm，高≥250mm；\n2、采用≥25mm*50mm*1.2mm方钢管做内架子，台面需采用≥25mm三聚氰胺板，四周需采用≥35mmX35mmX0.6mm厚白钢扣角襄边；",21,"套",1028,21588]
[8,"讲台","1、桌体上部分采用圆弧设计。符合人体力学原理，提供左右实木扶手。工艺:脱脂、磷化、静电喷塑、溜平固化，重点部位采用一次冲压成工艺:\n2、钢木结合材料一体成型:冷轧钢板厚度≥1.2MM、桌面为≥12mm木质耐划台面:实木扶手;全封闭式结构。\n3、采用分体式结构，整体尺寸≥1200*800mm。",21,"套",890,18690]
[9,"礼堂椅","1、原材料：采用高强度铝合金站脚、高回弹海绵；\n2、钢木结构，中等高度靠背；\n3、采用旋转式逃生写字板，在危险时无需将写字板收起可直立站起即刻逃生；\n4、背棉需采用高密度聚氨酯定型海绵；密度为不低于40Kg/m3；\n5、座棉需采用高密度聚氨酯定型海绵；密度为不低于50Kg/m3；\n6、座、背外板需采用高密度曲木板材经高温高压一次成型，具有吸音功能；\n7、面料需采用麻绒面料，耐磨，抗色变，柔软度适中，易清洗；\n8、扶手架及站脚需采用高强度铝合金压铸的站脚，不易变形；\n9、扶手盖需采用原木扶手外涂环保油漆；\n10、回复机构需采用阻尼回复机构，无故障，持久可靠耐用；\n11、地爆螺丝需采用隐藏式压爆钢制地爆螺丝固定地面（强力连接，不生锈）；\n12、扶手高度≥650mm，座椅中心间距≥570mm，整体高度≥1000mm，包含桌板前后距离≥1000mm；",375,"套",819,307125]